Cogmind - Beta 9.6 @@@ ROGUE MODE // 2020.05.18 @ 21:21:48 Player: travv0 Result: Destroyed by G-47 Trooper with Particle Gun Performance ------------- Evolutions (0) 0 Regions Visited (2) 400 Robots Destroyed (20) 100 Value Destroyed (484) 484 Prototype IDs (0) 0 Alien Tech Used (0) 0 Bonus (0) 0 TOTAL SCORE: 984 Bonus ------- None Cogmind --------- Core Integrity 0/250 Matter 300/300 Energy 13/100 System Corruption 0% Temperature Cool (9) Movement Core (50) Location -10/Mines Parts ------- > --- POWER (1) -------- (None) > --- PROPULSION (2) --- (None) > --- UTILITY (2) ------ Heat Sink Cooling System > --- WEAPON (2) ------- (None) > --- INVENTORY (4) ---- Light Ion Engine Aluminum Leg Aluminum Leg Light Assault Rifle Peak State ------------ > --- POWER ------------ Ion Engine > --- PROPULSION ------- Aluminum Leg Aluminum Leg > --- UTILITY ---------- Heat Sink Cooling System > --- WEAPON ----------- Particle Gun Improved Light Cannon > --- INVENTORY -------- Light Ion Engine Aluminum Leg Aluminum Leg [Rating: 10] Favorites ----------- Power Ion Engine Engine Ion Engine Propulsion Aluminum Leg Leg Aluminum Leg Utility Heat Sink Device Heat Sink Weapon Improved Light Cannon Energy Gun Particle Gun Ballistic Gun Light Assault Rifle Ballistic Cannon Improved Light Cannon Build | -11 -10 -10 ------- Run | Scr Mat Min Slots Evolved . | . . . Power . | . . . Propulsion . | . . . Utility . | . . . Weapon . | . . . Parts Attached 12 | 6 6 . Power 2 | 1 1 . Engine 2 | 1 1 . Core . | . . . Reactor . | . . . Propulsion 4 | 2 2 . Treads . | . . . Leg 4 | 2 2 . Wheel . | . . . Hover . | . . . Flight . | . . . Utility 2 | 1 1 . Device 2 | 1 1 . Storage . | . . . Processor . | . . . Hackware . | . . . Protection . | . . . Artifact . | . . . Weapon 4 | 2 2 . Energy Gun 2 | 1 1 . Energy Cannon . | . . . Ballistic Gun 1 | 1 . . Ballistic Cannon 1 | . 1 . Launcher . | . . . Special Weapon . | . . . Impact Weapon . | . . . Slashing Weapon . | . . . Piercing Weapon . | . . . Special Melee Weapon . | . . . Unidentified Prototypes . | . . . Parts Lost 7 | . 2 5 Power 1 | . . 1 Propulsion 2 | . . 2 Utility . | . . . Weapon 4 | . 2 2 Highest Loss Streak 4 | . 1 4 Average Slot Usage (%) 94 | . 95 94 Engine 12 | . 14 11 Leg 27 | . 28 26 Device 27 | . 26 28 Energy Gun 11 | . 7 13 Ballistic Gun 2 | . 7 . Ballistic Cannon 12 | . 10 13 Naked Turns . | . . . Heaviest Build 15 | 7 15 15 Greatest Support 20 | 20 20 20 Greatest Overweight (x) . | . . . Average Overweight (x) . | . . . Largest Inventory Capacity 4 | 4 4 4 Average Capacity 4 | 4 4 4 Most Carried 4 | 3 4 4 Average Carried 3 | . 3 4 Final Capacity 4 | 4 4 4 Final Carried 4 | 3 4 4 Class Distribution -------------------- 73% | Scavenger-Mutant 26% | Mutant Dominant Class ---------------- Scavenger-Mutant | -10/Materials Scavenger-Mutant | -10/Mines Resources | -11 -10 -10 ----------- Run | Scr Mat Min Matter Collected 514 | 265 202 47 Remotely . | . . . Salvage Created 518 | 42 365 111 Parts 33 | 5 17 11 Haulers Intercepted . | . . . Recyclers Shooed 1 | . 1 . Parts Field Recycled . | . . . Retrieved Matter . | . . . Parts Self-Destructed . | . . . Prevented . | . . . Kills | -11 -10 -10 ------- Run | Scr Mat Min Combat Hostiles Destroyed 17 | 1 10 6 Guns 6 | 1 4 1 Cannons 10 | . 5 5 Classes Destroyed 5 | 1 4 . Builder 1 | . 1 . Recycler 1 | . 1 . Mechanic 1 | . 1 . Swarmer 6 | . 3 3 Grunt 11 | 1 7 3 Best Kill Streak 11 | 1 11 3 Combat Bots Only 7 | 1 7 3 Max Kills in Single Turn 1 | 1 1 1 Gunslinging . | . . . Exploded . | . . . Melee . | . . . Uniques/NPCs Destroyed . | . . . Combat | -11 -10 -10 -------- Run | Scr Mat Min Damage Taken 946 | 40 478 428 Core 251 | 10 62 179 Absorbed by Shields . | . . . Core Remaining (%) 96 | 96 . . Volleys Fired 69 | 5 45 19 Largest 2 | 2 2 2 Hottest 104 | 60 104 104 Shots Fired 115 | 10 68 37 Gun 63 | 10 34 19 Cannon 52 | . 34 18 Launcher . | . . . Special . | . . . Kinetic 73 | 5 50 18 Thermal 31 | . 12 19 Explosive . | . . . Electromagnetic 11 | 5 6 . Robot Hit Streak 8 | 2 8 5 Robot Miss Streak 7 | 4 4 7 Penetration Max . | . . . Secondary Targets . | . . . Shots Hit Robots 64 | 3 39 22 Core Hits 26 | 3 16 7 Critical Hits 1 | . . 1 Critical Kills . | . . . Critical Parts Destroyed 1 | . . 1 Melee Attacks . | . . . Impact . | . . . Slashing . | . . . Piercing . | . . . Sneak Attacks . | . . . Combat Hostiles . | . . . Follow-up Attacks . | . . . Damage Inflicted 1210 | 53 723 434 Guns 482 | 53 219 210 Cannons 727 | . 504 223 Explosions . | . . . Melee . | . . . Ramming 1 | . . 1 Kinetic 802 | 13 566 223 Thermal 337 | . 127 210 Explosive . | . . . Electromagnetic 70 | 40 30 . Impact . | . . . Slashing . | . . . Piercing . | . . . Highest Corruption . | . . . Average Corruption . | . . . Corruption Purged . | . . . Overload Shots . | . . . Overflow Damage 26 | . 26 . Projectiles 26 | . 26 . Explosions . | . . . Melee . | . . . Knockbacks 12 | . 8 4 Impact . | . . . Kinetic 10 | . 7 3 Secondary 2 | . 1 1 Self-Inflicted Damage . | . . . Shots . | . . . Rammed . | . . . Targets Rammed 1 | . . 1 Kicked 1 | . . 1 Crushed . | . . . Highest Temperature 64 | 64 . . Average Temperature 37 | 37 . . Received Heat Transfer 504 | 24 264 216 Siege Activations . | . . . Robots Corrupted . | . . . Combat Hostiles . | . . . Parts Fried . | . . . Impact Corruptions 1 | . 1 . Robots Melted . | . . . Combat Hostiles . | . . . Parts Melted . | . . . Heat Transferred 777 | . 296 481 Parts Sabotaged . | . . . Parts Stolen . | . . . Parts Stripped . | . . . Power Chain Reactions . | . . . Missiles Intercepted . | . . . Alert | -11 -10 -10 ------- Run | Scr Mat Min Peak Influence 253 | 20 253 208 Average Influence 87 | 5 103 99 Maximum Alert Level 1 | . 1 1 Low Security (%) 91 | 100 74 98 Level 1 8 | . 25 1 Level 2 . | . . . Level 3 . | . . . Level 4 . | . . . Level 5 . | . . . High Security . | . . . Max Security . | . . . Squads Dispatched 1 | . 1 . Investigation 1 | . 1 . Extermination . | . . . Reinforcement . | . . . Assault . | . . . Garrison . | . . . Intercept . | . . . Construction Impeded . | . . . Haulers Reinforced . | . . . Stealth | -11 -10 -10 --------- Run | Scr Mat Min Distress Signals . | . . . Communications Jammed . | . . . Distress Signals . | . . . Times Spotted 24 | 1 14 9 Peak Tracking Total 4 | 1 4 3 Tactical Retreats 1 | . . 1 Traps | -11 -10 -10 ------- Run | Scr Mat Min Traps Triggered 1 | . 1 . Indirectly . | . . . Trap Hack Attempts . | . . . Triggered . | . . . Disarmed . | . . . Reprogrammed . | . . . Reused . | . . . Traps Extracted . | . . . Installed . | . . . Triggered . | . . . Machines | -11 -10 -10 ---------- Run | Scr Mat Min Machines Disabled . | . . . Max in Single Turn . | . . . Machines Sabotaged . | . . . Garrisons Compromised . | . . . Overloaded Fab Kills . | . . . Fab Network Shutdowns . | . . . Hacking | -11 -10 -10 --------- Run | Scr Mat Min Machines Accessed 1 | . 1 . Terminals 1 | . 1 . Fabricators . | . . . Repair Stations . | . . . Recycling Units . | . . . Scanalyzers . | . . . Garrison Access . | . . . Total Hacks 1 | . 1 . Successful 1 | . 1 . Failed . | . . . Catastrophic . | . . . Database Lockouts . | . . . Manual . | . . . Terminals 1 | . 1 . Fabricators . | . . . Repair Stations . | . . . Recycling Units . | . . . Scanalyzers . | . . . Garrison Access . | . . . Terminal Hacks 1 | . 1 . Record 1 | . 1 . Fabricator Hacks . | . . . Repair Station Hacks . | . . . Recycling Unit Hacks . | . . . Scanalyzer . | . . . Garrison Access Hacks . | . . . Unauthorized Hacks . | . . . Terminals . | . . . Fabricators . | . . . Repair Stations . | . . . Recycling Units . | . . . Scanalyzers . | . . . Garrison Access . | . . . Data Cores Recovered . | . . . Used . | . . . Hacking Detections . | . . . Full Trace Events . | . . . Feedback Events . | . . . Feedback Blocked . | . . . Robot Schematics Acquired . | . . . Robots Built . | . . . Matter . | . . . Time . | . . . Total Robot Build Rating . | . . . Part Schematics Acquired . | . . . Parts Built . | . . . Matter . | . . . Time . | . . . Total Part Build Rating . | . . . Parts Repaired . | . . . Time . | . . . Parts Recycled . | . . . Recycled Matter . | . . . Retrieved Matter . | . . . Retrieved Components . | . . . Parts Scanalyzed . | . . . Part Schematics Acquired . | . . . Parts Damaged . | . . . Bothacking | -11 -10 -10 ------------ Run | Scr Mat Min Used RIF Installer . | . . . Robots Hacked . | . . . Non-combat . | . . . Combat . | . . . Robot Hacks Applied . | . . . Relay Couplers Released . | . . . Robots Rewired . | . . . Allies Hacked . | . . . Hacks Repelled . | . . . Allies | -11 -10 -10 -------- Run | Scr Mat Min Total Allies . | . . . Largest Group . | . . . Highest-Rated Group . | . . . Highest-Rated Ally . | . . . Total Orders . | . . . Ally Attacks . | . . . Total Damage . | . . . Kills . | . . . Allies Corrupted . | . . . Allies Melted . | . . . Intel | -11 -10 -10 ------- Run | Scr Mat Min Robot Analysis Total . | . . . Derelict Logs Recovered 1 | . . 1 Drone Launches . | . . . Drone Recoveries . | . . . Exploration | -11 -10 -10 ------------- Run | Scr Mat Min Turns Passed 816 | 117 243 456 Spaces Moved 497 | 86 97 314 Core 17 | 17 . . Treads . | . . . Legs 480 | 69 97 314 Wheels . | . . . Hover . | . . . Flight . | . . . Fastest Speed 50 | 50 120 120 Average Speed 117 | 106 120 120 Slowest Speed 120 | 120 120 120 Overloaded Moves . | . . . Propulsion Burnouts . | . . . Robots Hopped . | . . . Cave-ins Triggered . | . . . Exploration Rate (%) 33 | 6 19 76 Regions Visited 2 Branch Regions 1 Pre-discovered Areas . | . . . Known Exits Taken . | . . . Unknown Exits Taken 2 | 1 1 . Scrap Searched 1 | . . 1 Spaces Dug . | . . . Terrain Destroyed 3 | . 1 2 Melee . | . . . Projectile 3 | . 1 2 AOE . | . . . Actions | -11 -10 -10 --------- Run | Scr Mat Min Total 613 | 99 158 356 Wait 28 | . 6 22 Move 495 | 85 96 314 Hop . | . . . Pick Up 7 | 3 4 . Fast Attach 7 | 6 1 . Attach 3 | . 3 . Detach . | . . . Swap 2 | . 2 . Drop 1 | . 1 . Fire 69 | 5 45 19 Melee . | . . . Ram . | . . . Kick 1 | . . 1 Crush . | . . . Escape Stasis . | . . . Rewire . | . . . Trap . | . . . Miscellaneous . | . . . Route ------- -11/Scrapyard -10/Materials -10/Mines History --------- Turn | Location | Event 2 | -11/Scrapyard | Met Revision 17 66 | -11/Scrapyard | Discovered new exit (range 8) 118 | -11/Scrapyard | Entered Materials 319 | -10/Materials | Destroyed 7 combat bots 336 | -10/Materials | Discovered new exit (range 16) 361 | -10/Materials | Entered Mines 489 | -10/Mines | Build established: Scavenger-Mutant 664 | -10/Mines | Found a hidden stash of uninstalled traps 768 | -10/Mines | Core integrity fell below 50% 793 | -10/Mines | Core integrity fell below 20% 817 | -10/Mines | Destroyed by G-47 Trooper with Particle Gun Last Messages --------------- Ion Engine destroyed. G-47 Trooper destroyed. Acquired 19 matter. G-34 Mercenary knocked back. G-47 Trooper suffers critical hit. Destroyed Aluminum Leg. G-47 Trooper knocked back. G-34 Mercenary destroyed. R-06 Scavenger collects Aluminum Leg. Aluminum Leg destroyed. To regain energy, simply wait via the mouse wheel '.', or KP5. Also make sure your per-turn energy generation is a net positive, and consider deactivating power-draining parts if not. Imp. Light Cannon destroyed. R-06 Scavenger collects Aluminum Leg. Particle Gun destroyed. Acquired 13 matter. U-05 Engineer builds a Wall. K-01 Serf collects debris. Aluminum Leg destroyed. Map ----- +----------------------------------------------------+ | ?????????????????????????????????? | | ?????????????????????????????????? | | ??????????????? ????????????????? | | ??????????????# ???????????????## | | ??????????????# ???????????????# | | ??????????????# ???????????????# | | ??????????????# ???????????????# | | ??????????????? #???????######## | | ?????????????#? ???????# | | ????????????## #??????# #### # | | ????????????? #?????## #??# # | | ?????????????? #????## #??# # | | ?????????????? #????# #??# # | | ??????????????? #???## #??# # | | ???????????????? #??## ##?? # | | ??????????????### #?## #???### | | ????????????#####$### ##????? | | ????????????#!%= #??? | | ????????????#%#### ### ####??? | | ????????????# #??# #?### ##?????? | | ????????????#%#??# #???####??????? | | ?????????#### #??# #?????????????? | | ?????????# #??# #?????????????? | | ?????????# ####??# #?????????????? | | ????######g#?????# #?????????????? | | ????# @ #?????# #?????????????? | | ????# ######?????? ??????????????? | | ????# #??????????? ??????????????? | | ????# #??????????? ??????????????? | | ????# #???????????#??????????##??? | | ????# ##????????????????????## ?? | | ???## ###???????????????#### # | | ???# ##?????????????## | | ???# #?????????????# | | ???## #?????????????# | | ???## ##??????????? # | | ???# =#?????????????### ?? | | ??## &&[%#???????????????# ???? | | ??# &&##*#???????????????# ????? | | ?# &### #??????????????? ??????? | | ?######[=#???????????????????????# | | ??????##=#??????????????????????## | | ?????###*####???????????????????# | | ?????# #?????????????????# | | ?????# #????????????????# | | ?????# #????????????????## | | ?????#""" #?????????????????#### | | ?????#""" #????????????????????? | | ?????#""" #????????????????????? | | ?????# #????????????????????? | +----------------------------------------------------+ Best States ------------- Heat Dissipation 57 Energy Generation 10 Energy Capacity 250 Matter Stores 300 Matter Capacity 300 Sight Range 16 Terrain Scan Density 10 Evasion (%) 50 Item Schematics ----------------- None Robot Schematics ------------------ None Fabricated ------------ Nothing Alien Tech Used ----------------- None Achievements -------------- Storm Trooper Challenges ------------ None Game ------ Seed LaserMetafieldThruster Manual? 0 Play Time 00:11:19 Cumulative 2.0 hours Start 2020.05.17 @ 00:15:09 End 2020.05.18 @ 21:21:48 Sessions 3 Manual Loads 0 Difficulty Rogue Special Mode None Game No. 3 Rogue 3 Adventurer 0 Explorer 0 Win Type - Total 0 Types 0/0/0/0/0/0/0 Lore% 0 Gallery% 3 Achievement% 3 Wizard Run 0 Options --------- ASCII 1 Keyboard 0 Movement Vi Keybinds 0 Fullscreen 1 Font 36/Smallcaps Map View 76x50 Tactical HUD 0 Map Filters NONE Filters NONE Steam 1 RUN: 7356be30-d8c9-48e7-a8ce-a30a10840c16